fUSD/lending_fUSD_20250716
["ID","MTS","AMOUNT","RATE_DAILY","PERIOD"]
[372552094,1752681038009,-383.18623387,0.00020399,2]
[372552095,1752681038019,-363.34536188,0.00020399,2]
[372552096,1752681038029,-183.03340521,0.00020399,2]
[372552098,1752681038039,-500.0,0.00020399,2]
[372552099,1752681038051,-605.48837015,0.00020399,2]
[372552100,1752681038061,-447.5105934,0.00020399,2]
[372552101,1752681038071,-486.58286418,0.00020399,2]
[372552102,1752681038082,-500.0,0.00020399,2]
[372552103,1752681038092,-500.0,0.00020399,2]
[372552104,1752681038101,-150.0,0.00020399,2]
[372552105,1752681038111,-1074994.35595907,0.000204,2]
[372552106,1752681038121,-12163.44651125,0.000204,2]
[372552107,1752681038131,-8970.03,0.000204,2]
[372552108,1752681038141,-151.0,0.000204,2]
[372552109,1752681038156,-9600.0,0.000204,7]
[372552110,1752681038168,-1300.0,0.000204,7]
[372552111,1752681038178,-1700.0,0.000204,7]
[372552112,1752681038188,-1500.0,0.000204,7]
[372552113,1752681038198,-1900.0,0.000204,7]
[372552114,1752681038209,-1000.0,0.00020405,2]
[372552115,1752681038219,-300.0,0.00020405,2]
[372552117,1752681038229,-300.0,0.00020405,2]
[372552118,1752681038239,-6977.90179098,0.00020406,2]
[372552119,1752681038249,-421.41501894,0.00020406,2]
[372552120,1752681038259,-3905.70158798,0.00020406,2]
[372552121,1752681038268,-193.444552,0.00020406,2]
[372552122,1752681038278,-193.444552,0.00020406,2]
[372552123,1752681038288,-151.0,0.00020406,2]
[372552124,1752681038297,-151.0,0.00020406,2]
[372552125,1752681038306,-151.0,0.00020406,2]
[372552126,1752681038315,-151.0,0.00020406,2]
[372552127,1752681038325,-151.0,0.00020406,2]
[372552128,1752681038335,-151.647802,0.00020406,2]
[372552129,1752681038345,-44850.15,0.0002041,2]
[372552130,1752681038354,-157.02002437,0.00020417,2]
[372552131,1752681038364,-6977.90179098,0.00020439,2]
[372552132,1752681038373,-3905.70158798,0.00020439,2]
[372552133,1752681038383,-151.0,0.00020453,2]
[372552134,1752681038393,-151.0,0.00020453,2]
[372552135,1752681038403,-151.0,0.00020453,2]
[372552136,1752681038412,-151.0,0.00020453,2]
[372552137,1752681038422,-157.02912396,0.00020453,2]
[372552138,1752681038432,-421.41501894,0.00020456,2]
[372552139,1752681038441,-165.0,0.00020466,2]
[372552140,1752681038454,-277.69805332,0.00020473,2]
[372552142,1752681038464,-500.0,0.00020473,2]
[372552144,1752681038473,-486.73665826,0.00020473,2]
[372552146,1752681038483,-500.0,0.00020473,2]
[372552148,1752681038493,-501.10542618,0.00020473,2]
[372552150,1752681038503,-500.0,0.00020473,2]
[372552152,1752681038513,-500.0,0.00020473,2]
[372552154,1752681038522,-210.53900669,0.00020473,2]
[372552156,1752681038532,-504.18779699,0.00020473,2]
[372552158,1752681038542,-581.42247682,0.00020473,2]
[372552160,1752681038551,-502.04250254,0.00020473,2]
[372552161,1752681038561,-500.0,0.00020473,2]
[372552163,1752681038571,-6977.90179098,0.00020473,2]
[372552165,1752681038580,-3905.70158798,0.00020473,2]
[372552167,1752681038589,-214.31,0.00020483,2]
[372552169,1752681038599,-768.88574926,0.00020488,2]
[372552170,1752681038609,-473.74218997,0.00020496,2]
[372552172,1752681038618,-420.0,0.00020498,2]
[372552173,1752681038628,-1695.46094,0.000205,2]
[372552174,1752681038637,-1900.0,0.000205,7]
[372552175,1752681038647,-200.0,0.000205,7]
[372552176,1752681038657,-300.0,0.000205,7]
[372552177,1752681038666,-300.0,0.000205,7]
[372552178,1752681038676,-300.0,0.000205,7]
[372552179,1752681038686,-13829.74329959,0.00020505,2]
[372552180,1752681038695,-5000.0,0.00020505,2]
[372552181,1752681039143,-5000.0,0.00020505,2]
[372552182,1752681039154,-3909.18617129,0.00020505,2]
[372552183,1752681039164,-74360.71,0.00020506,2]
[372552184,1752681039175,-151.0,0.00020506,2]
[372552185,1752681039186,-151.0,0.00020506,2]
[372552186,1752681039198,-151.0,0.00020506,2]
[372552187,1752681039208,-151.0,0.00020506,2]
[372552188,1752681039218,-151.0,0.00020506,2]
[372552189,1752681039228,-151.0,0.00020506,2]
[372552190,1752681039237,-151.0,0.00020506,2]
[372552191,1752681039247,-151.0,0.00020506,2]
[372552192,1752681039257,-151.0,0.00020506,2]
[372552193,1752681039267,-151.0,0.00020506,2]
[372552194,1752681039277,-151.0,0.00020506,2]
[372552195,1752681039287,-151.224914,0.00020506,2]
[372552196,1752681039297,-151.0,0.00020506,2]
[372552197,1752681039307,-754.748766,0.00020506,2]
[372552198,1752681039317,-754.748766,0.00020506,2]
[372552199,1752681039328,-168.263207,0.00020506,2]
[372552200,1752681039338,-168.263207,0.00020506,2]
[372552201,1752681039348,-169.597772,0.00020506,2]
[372552202,1752681039359,-151.0,0.00020506,2]
[372552203,1752681039370,-169.597772,0.00020506,2]
[372552204,1752681039381,-254.0,0.00020506,2]
[372552205,1752681039392,-151.0,0.00020506,2]
[372552206,1752681039403,-151.0,0.00020506,2]
[372552207,1752681039412,-151.0,0.00020506,2]
[372552208,1752681039422,-151.0,0.00020506,2]
[372552209,1752681039431,-1123.338898,0.00020506,2]
[372552210,1752681039441,-1123.338898,0.00020506,2]
[372552211,1752681039452,-259.892244,0.00020506,2]
[372552212,1752681039463,-157.592559,0.00020506,2]
[372552213,1752681039472,-259.892244,0.00020506,2]
[372552214,1752681039482,-157.592559,0.00020506,2]
[372552215,1752681039494,-6977.90179098,0.00020506,2]
[372552216,1752681039504,-151.524423,0.00020506,2]
[372552217,1752681039514,-151.0,0.00020506,2]
[372552218,1752681039524,-196.756282,0.00020506,2]
[372552219,1752681039535,-151.0,0.00020506,2]
[372552220,1752681039546,-151.0,0.00020506,2]
[372552221,1752681039558,-196.756282,0.00020506,2]
[372552222,1752681039569,-152.065048,0.00020506,2]
[372552223,1752681039579,-1157.935032,0.00020506,2]
[372552224,1752681039591,-221.559025,0.00020506,2]
[372552225,1752681039601,-221.559025,0.00020506,2]
[372552226,1752681039611,-1157.935032,0.00020506,2]
[372552227,1752681039621,-151.0,0.00020506,2]
[372552228,1752681039631,-421.41501894,0.00020506,2]
[372552229,1752681039641,-151.0,0.00020506,2]
[372552230,1752681039651,-1412.317142,0.00020506,2]
[372552231,1752681039662,-1412.317142,0.00020506,2]
[372552232,1752681039672,-802.072043,0.00020506,2]
[372552233,1752681039681,-3905.70158798,0.00020506,2]
[372552236,1752681039691,-802.072043,0.00020506,2]
[372552238,1752681039703,-153.392932,0.00020506,2]
[372552239,1752681039712,-193.444552,0.00020506,2]
[372552240,1752681039722,-394.813699,0.00020506,2]
[372552242,1752681039732,-193.444552,0.00020506,2]
[372552243,1752681039743,-394.813699,0.00020506,2]
[372552244,1752681039754,-151.0,0.00020506,2]
[372552245,1752681039765,-151.0,0.00020506,2]
[372552246,1752681039775,-151.0,0.00020506,2]
[372552247,1752681039786,-151.0,0.00020506,2]
[372552248,1752681039796,-151.0,0.00020506,2]
[372552249,1752681039806,-151.0,0.00020506,2]
[372552250,1752681039816,-151.0,0.00020506,2]
[372552251,1752681039826,-2267.142784,0.00020506,2]
[372552252,1752681039836,-2267.142784,0.00020506,2]
[372552253,1752681039847,-5402.927121,0.00020506,2]
[372552254,1752681039857,-151.0,0.00020524,2]
[372552255,1752681039868,-151.141842,0.00020524,2]
[372552256,1752681039879,-151.0,0.00020524,2]
[372552257,1752681039889,-151.0,0.00020524,2]
[372552258,1752681039901,-157.02912396,0.0002053,2]
[372552259,1752681039910,-6977.90179098,0.00020539,2]
[372552260,1752681039920,-3905.70158798,0.00020539,2]
[372552261,1752681039930,-200.0,0.0002054,2]
[372552262,1752681039939,-6590.95,0.00020547,2]
[372552263,1752681039952,-421.41501894,0.00020556,2]
[372552264,1752681039962,-500.0,0.00020573,2]
[372552265,1752681039972,-500.62068923,0.00020573,2]
[372552266,1752681039983,-500.0,0.00020573,2]
[372552267,1752681039993,-500.93674537,0.00020573,2]
[372552268,1752681040004,-503.02074306,0.00020573,2]
[372552269,1752681040017,-500.0,0.00020573,2]
[372552270,1752681040027,-500.0,0.00020573,2]
[372552271,1752681040038,-500.0,0.00020573,2]
[372552272,1752681040049,-6977.90179098,0.00020573,2]
[372552273,1752681040060,-3905.70158798,0.00020573,2]
[372552274,1752681040071,-155.73,0.00020596,2]
[372552275,1752681040080,-1680.0,0.00020598,2]
[372552276,1752681040091,-22475.9902,0.00020599,2]
[372552277,1752681040101,-1000.0,0.00020599,2]
[372552278,1752681040111,-1695.46094,0.000206,2]
[372552279,1752681040121,-1900.0,0.000206,7]
[372552280,1752681040131,-200.0,0.000206,7]
[372552281,1752681040141,-300.0,0.000206,7]
[372552282,1752681040150,-300.0,0.000206,7]
[372552283,1752681040160,-300.0,0.000206,7]
[372552284,1752681040170,-1000.0,0.00020602,2]
[372552285,1752681040180,-229.1304,0.00020602,2]
[372552286,1752681040190,-1000.0,0.00020602,2]
[372552287,1752681040203,-1000.0,0.00020602,2]
[372552288,1752681040213,-1000.0,0.00020602,2]
[372552289,1752681040223,-1000.0,0.00020602,2]
[372552290,1752681040233,-1000.0,0.00020602,2]
[372552291,1752681040243,-1000.0,0.00020602,2]
[372552292,1752681040252,-1000.0,0.00020602,2]
[372552293,1752681040262,-1000.0,0.00020602,2]
[372552295,1752681040272,-1000.0,0.00020602,2]
[372552297,1752681040282,-1000.0,0.00020602,2]
[372552299,1752681040292,-1000.0,0.00020602,2]
[372552301,1752681040302,-1000.0,0.00020602,2]
[372552304,1752681040312,-1000.0,0.00020602,2]
[372552306,1752681040322,-1000.0,0.00020602,2]
[372552308,1752681040332,-1000.0,0.00020602,2]
[372552310,1752681040341,-1000.0,0.00020602,2]
[372552312,1752681040351,-1000.0,0.00020602,2]
[372552314,1752681040360,-1000.0,0.00020602,2]
[372552316,1752681040370,-1000.0,0.00020602,2]
[372552318,1752681040379,-1000.0,0.00020602,2]
[372552320,1752681040388,-1000.0,0.00020602,2]
[372552322,1752681040398,-1000.0,0.00020602,2]
[372552324,1752681040407,-1000.0,0.00020602,2]
[372552326,1752681040417,-1000.0,0.00020602,2]
[372552329,1752681040426,-1000.0,0.00020602,2]
[372552331,1752681040436,-1000.0,0.00020602,2]
[372552333,1752681040445,-1000.0,0.00020602,2]
[372552335,1752681040457,-1000.0,0.00020602,2]
[372552336,1752681040467,-1000.0,0.00020602,2]
[372552337,1752681040476,-1000.0,0.00020602,2]
[372552339,1752681040485,-1000.0,0.00020602,2]
[372552342,1752681040495,-1000.0,0.00020602,2]
[372552345,1752681040504,-1021.9707,0.00020602,2]
[372552348,1752681040514,-171910.1989,0.00020606,2]
[372552351,1752681040524,-154.011334,0.00020606,2]
[372552354,1752681040534,-154.011334,0.00020606,2]
[372552357,1752681040544,-151.0,0.00020606,2]
[372552360,1752681040554,-151.0,0.00020606,2]
[372552362,1752681040563,-151.0,0.00020606,2]
[372552364,1752681040573,-151.0,0.00020606,2]
[372552366,1752681040583,-151.0,0.00020606,2]
[372552368,1752681040592,-236.335291,0.00020606,2]
[372552371,1752681040602,-151.0,0.00020606,2]
[372552373,1752681040611,-337.112323,0.00020606,2]
[372552375,1752681040622,-151.0,0.00020606,2]
[372552377,1752681040632,-151.0,0.00020606,2]
[372552379,1752681040642,-236.335291,0.00020606,2]
[372552381,1752681040652,-151.0,0.00020606,2]
[372552383,1752681040662,-151.0,0.00020606,2]
[372552385,1752681040674,-196.790662,0.00020606,2]
[372552387,1752681040683,-151.0,0.00020606,2]
[372552389,1752681040693,-196.790662,0.00020606,2]
[372552391,1752681040704,-151.0,0.00020606,2]
[372552393,1752681040713,-1278.128112,0.00020606,2]
[372552395,1752681040723,-151.0,0.00020606,2]
[372552396,1752681040733,-676.455964,0.00020606,2]
[372552397,1752681040743,-1278.128112,0.00020606,2]
[372552398,1752681040753,-151.0,0.00020606,2]
[372552399,1752681040762,-151.0,0.00020606,2]
[372552400,1752681040772,-676.455964,0.00020606,2]
[372552401,1752681040782,-151.0,0.00020606,2]
[372552402,1752681040791,-151.0,0.00020606,2]
[372552403,1752681040801,-151.0,0.00020606,2]
[372552404,1752681040811,-151.0,0.00020606,2]
[372552405,1752681040821,-151.0,0.00020606,2]
[372552406,1752681040831,-151.0,0.00020606,2]
[372552407,1752681040840,-151.0,0.00020606,2]
[372552408,1752681040852,-151.0,0.00020606,2]
[372552409,1752681040866,-151.0,0.00020606,2]
[372552410,1752681040876,-500.847244,0.00020606,2]
[372552411,1752681040886,-151.0,0.00020606,2]
[372552412,1752681040896,-355.24956,0.00020606,2]
[372552413,1752681040906,-151.0,0.00020606,2]
[372552414,1752681040916,-500.847244,0.00020606,2]
[372552415,1752681040927,-355.24956,0.00020606,2]
[372552416,1752681040937,-151.0,0.00020606,2]
[372552417,1752681040947,-151.0,0.00020606,2]
[372552418,1752681040957,-200.0,0.00020606,2]
[372552419,1752681040968,-153.374678,0.00020606,2]
[372552420,1752681040978,-200.0,0.00020606,2]
[372552421,1752681040987,-200.0,0.00020606,2]
[372552422,1752681040998,-200.0,0.00020606,2]
[372552423,1752681041007,-200.0,0.00020606,2]
[372552424,1752681041021,-200.0,0.00020606,2]
[372552425,1752681041032,-200.0,0.00020606,2]
[372552426,1752681041042,-200.0,0.00020606,2]
[372552427,1752681041051,-492.415324,0.00020606,2]
[372552428,1752681041062,-200.0,0.00020606,2]
[372552429,1752681041072,-200.0,0.00020606,2]
[372552430,1752681041082,-200.0,0.00020606,2]
[372552431,1752681041093,-200.0,0.00020606,2]
[372552432,1752681041104,-200.0,0.00020606,2]
[372552433,1752681041114,-200.0,0.00020606,2]
[372552434,1752681041124,-200.0,0.00020606,2]
[372552435,1752681041134,-200.0,0.00020606,2]
[372552436,1752681041144,-200.0,0.00020606,2]
[372552437,1752681041154,-200.0,0.00020606,2]
[372552438,1752681041164,-200.0,0.00020606,2]
[372552439,1752681041173,-492.415324,0.00020606,2]
[372552440,1752681041183,-200.0,0.00020606,2]
[372552441,1752681041193,-243.69856,0.00020606,2]
[372552442,1752681041204,-151.0,0.00020606,2]
[372552443,1752681041214,-151.0,0.00020606,2]
[372552444,1752681041224,-169.257944,0.00020606,2]
[372552445,1752681041234,-151.0,0.00020606,2]
[372552446,1752681041245,-169.257944,0.00020606,2]
[372552447,1752681041255,-151.0,0.00020606,2]
[372552448,1752681041267,-151.0,0.00020606,2]
[372552449,1752681041278,-251.349721,0.00020606,2]
[372552450,1752681041288,-151.0,0.00020606,2]
[372552451,1752681041299,-151.0,0.00020606,2]
[372552452,1752681041310,-251.349721,0.00020606,2]
[372552453,1752681041320,-220.360717,0.00020606,2]
[372552454,1752681041330,-220.360717,0.00020606,2]
[372552455,1752681041340,-151.0,0.00020606,2]
[372552456,1752681041350,-151.0,0.00020606,2]
[372552457,1752681041360,-151.24422,0.00020606,2]
[372552458,1752681041369,-151.24422,0.00020606,2]
[372552459,1752681041379,-151.0,0.00020606,2]
[372552460,1752681041389,-446.624718,0.00020606,2]
[372552461,1752681041398,-446.624718,0.00020606,2]
[372552462,1752681041408,-157.02002437,0.00020606,2]
[372552463,1752681041418,-152.894943,0.00020606,2]
[372552464,1752681041428,-151.0,0.00020606,2]
[372552465,1752681041438,-151.0,0.00020606,2]
[372552466,1752681041449,-151.0,0.00020606,2]
[372552467,1752681041458,-151.0,0.00020606,2]
[372552468,1752681041468,-151.0,0.00020606,2]
[372552469,1752681041479,-151.0,0.00020606,2]
[372552470,1752681041489,-152.383668,0.00020606,2]
[372552471,1752681041499,-754.748766,0.00020606,2]
[372552472,1752681041508,-253.35363779,0.00020606,2]
[372552473,1752681041518,-754.748766,0.00020606,2]
[372552474,1752681041528,-168.263207,0.00020606,2]
[372552475,1752681041537,-168.263207,0.00020606,2]
[372552476,1752681041547,-169.597772,0.00020606,2]
[372552477,1752681041557,-151.0,0.00020606,2]
[372552478,1752681041566,-169.597772,0.00020606,2]
[372552479,1752681041576,-151.0,0.00020606,2]
[372552480,1752681041585,-631.391047,0.00020606,2]
[372552481,1752681041594,-631.391047,0.00020606,2]
[372552482,1752681041604,-151.0,0.00020606,2]
[372552483,1752681041613,-151.0,0.00020606,2]
[372552484,1752681041623,-151.0,0.00020606,2]
[372552485,1752681041632,-1123.338898,0.00020606,2]
[372552486,1752681041641,-1123.338898,0.00020606,2]
[372552487,1752681041751,-259.892244,0.00020606,2]
[372552488,1752681041761,-157.592559,0.00020606,2]
[372552489,1752681041770,-259.892244,0.00020606,2]
[372552490,1752681041780,-157.592559,0.00020606,2]
[372552491,1752681041790,-151.0,0.00020606,2]
[372552492,1752681041800,-6977.90179098,0.00020606,2]
[372552493,1752681041809,-196.756282,0.00020606,2]
[372552494,1752681041818,-151.0,0.00020606,2]
[372552495,1752681041828,-196.756282,0.00020606,2]
[372552496,1752681041837,-151.0,0.00020606,2]
[372552497,1752681041847,-151.0,0.00020606,2]
[372552498,1752681041857,-1157.935032,0.00020606,2]
[372552499,1752681041866,-221.559025,0.00020606,2]
[372552500,1752681041877,-221.559025,0.00020606,2]
[372552501,1752681041886,-1157.935032,0.00020606,2]
[372552502,1752681041896,-151.0,0.00020606,2]
[372552503,1752681041906,-151.0,0.00020606,2]
[372552504,1752681041916,-421.41501894,0.00020606,2]
[372552505,1752681041925,-1412.317142,0.00020606,2]
[372552506,1752681041936,-1412.317142,0.00020606,2]
[372552507,1752681041947,-802.072043,0.00020606,2]
[372552508,1752681041959,-802.072043,0.00020606,2]
[372552509,1752681041968,-7888.29977366,0.00020606,2]
[372552510,1752681041980,-3905.70158798,0.00020606,2]
[372552511,1752681041990,-193.444552,0.00020606,2]
[372552512,1752681041999,-394.813699,0.00020606,2]
[372552513,1752681042010,-193.444552,0.00020606,2]
[372552514,1752681042024,-394.813699,0.00020606,2]
[372552515,1752681042033,-151.0,0.00020606,2]
[372552516,1752681042043,-151.0,0.00020606,2]
[372552517,1752681042052,-151.0,0.00020606,2]
[372552518,1752681042062,-151.0,0.00020606,2]
[372552519,1752681042072,-151.0,0.00020606,2]
[372552520,1752681042081,-151.0,0.00020606,2]
[372552521,1752681042091,-151.0,0.00020606,2]
[372552522,1752681042101,-157.02912396,0.00020606,2]
[372552523,1752681042111,-160.9001406,0.00020606,2]
[372552524,1752681042121,-476.18004893,0.00020606,3]
[372552525,1752681042131,-2267.142784,0.00020606,2]
[372552526,1752681042140,-2267.142784,0.00020606,2]
[372552527,1752681042150,-5402.927121,0.00020606,2]
[372552528,1752681042160,-5000.0,0.00020606,2]
[372552529,1752681042170,-1143.83468805,0.00020606,4]
[372552530,1752681042180,-1143.83468805,0.00020606,4]
[372552531,1752681042190,-1143.83468805,0.00020606,4]
[372552532,1752681042200,-1143.83468805,0.00020606,4]
[372552533,1752681042210,-1143.83468805,0.00020606,4]
[372552534,1752681042221,-1143.83468805,0.00020606,4]
[372552535,1752681042230,-1143.83468805,0.00020606,4]
[372552536,1752681042240,-1143.83468805,0.00020606,4]
[372552537,1752681042249,-1143.83468805,0.00020606,4]
[372552538,1752681042259,-1143.83468805,0.00020606,4]
[372552539,1752681042269,-1143.83468805,0.00020606,4]
[372552540,1752681042279,-1143.83468805,0.00020606,4]
[372552541,1752681042290,-1143.83468805,0.00020606,4]
[372552543,1752681042301,-1143.83468805,0.00020606,4]
[372552544,1752681042310,-1143.83468805,0.00020606,4]
[372552545,1752681042320,-1143.83468805,0.00020606,4]
[372552546,1752681042330,-1143.83468805,0.00020606,4]
[372552547,1752681042339,-1143.83468805,0.00020606,4]
[372552548,1752681042350,-1143.83468805,0.00020606,4]
[372552549,1752681042359,-1143.83,0.00020606,4]
[372552551,1752681042368,-2668.94760546,0.00020606,4]
[372552552,1752681042379,-2668.94760546,0.00020606,4]
[372552553,1752681042389,-2668.94760546,0.00020606,4]
[372552554,1752681042399,-2668.94760546,0.00020606,4]
[372552555,1752681042408,-2668.94760546,0.00020606,4]
[372552556,1752681042417,-2668.94760546,0.00020606,4]
[372552557,1752681042427,-2668.94760546,0.00020606,4]
[372552559,1752681042437,-2668.94760546,0.00020606,4]
[372552560,1752681042447,-2668.94760546,0.00020606,4]
[372552563,1752681042460,-2668.94760546,0.00020606,4]
[372552564,1752681042469,-2668.94760546,0.00020606,4]
[372552565,1752681042479,-2668.94760546,0.00020606,4]
[372552566,1752681042488,-2668.94760546,0.00020606,4]
[372552567,1752681042498,-2668.94760546,0.00020606,4]
[372552568,1752681042508,-2668.94760546,0.00020606,4]
[372552569,1752681042517,-2668.94760546,0.00020606,4]
[372552570,1752681042526,-2668.94760546,0.00020606,4]
[372552571,1752681042536,-2668.94760546,0.00020606,4]
[372552572,1752681042545,-2668.94760546,0.00020606,4]
[372552573,1752681042555,-2668.94,0.00020606,4]
[372552574,1752681042564,-1166.4167058,0.00020606,4]
[372552575,1752681042574,-1166.4167058,0.00020606,4]
[372552576,1752681042584,-1166.4167058,0.00020606,4]
[372552577,1752681042594,-1166.4167058,0.00020606,4]
[372552578,1752681042604,-1166.4167058,0.00020606,4]
[372552579,1752681042613,-1166.4167058,0.00020606,4]
[372552580,1752681042623,-1166.4167058,0.00020606,4]
[372552582,1752681042633,-1166.4167058,0.00020606,4]
[372552583,1752681042643,-1166.4167058,0.00020606,4]
[372552584,1752681042652,-1166.4167058,0.00020606,4]
[372552585,1752681042662,-1166.4167058,0.00020606,4]
[372552586,1752681042671,-1166.4167058,0.00020606,4]
[372552587,1752681042681,-1166.4167058,0.00020606,4]
[372552588,1752681042690,-1166.4167058,0.00020606,4]
[372552589,1752681042700,-1166.4167058,0.00020606,4]
[372552590,1752681042710,-1166.4167058,0.00020606,4]
[372552591,1752681042720,-1166.4167058,0.00020606,4]
[372552592,1752681042730,-1166.4167058,0.00020606,4]
[372552593,1752681042739,-1166.4167058,0.00020606,4]
[372552594,1752681042749,-1166.41,0.00020606,4]
[372552595,1752681042759,-2721.6389802,0.00020606,4]
[372552596,1752681042768,-2721.6389802,0.00020606,4]
[372552597,1752681042777,-2721.6389802,0.00020606,4]
[372552598,1752681042786,-2721.6389802,0.00020606,4]
[372552599,1752681042797,-2721.6389802,0.00020606,4]
[372552600,1752681042807,-2721.6389802,0.00020606,4]
[372552601,1752681042816,-2721.6389802,0.00020606,4]
[372552602,1752681042825,-2721.6389802,0.00020606,4]
[372552603,1752681042835,-2721.6389802,0.00020606,4]
[372552604,1752681042844,-2721.6389802,0.00020606,4]
[372552605,1752681042853,-2721.6389802,0.00020606,4]
[372552606,1752681042862,-2721.6389802,0.00020606,4]
[372552607,1752681042872,-2721.6389802,0.00020606,4]
[372552609,1752681042881,-2721.6389802,0.00020606,4]
[372552610,1752681042890,-2721.6389802,0.00020606,4]
[372552612,1752681042900,-2721.6389802,0.00020606,4]
[372552614,1752681042909,-2721.6389802,0.00020606,4]
[372552616,1752681042918,-2721.6389802,0.00020606,4]
[372552618,1752681042928,-2721.6389802,0.00020606,4]
[372552619,1752681042937,-2721.63,0.00020606,4]
[372552620,1752681042946,-1269.79852195,0.00020606,4]
[372552621,1752681042956,-1269.79852195,0.00020606,4]
[372552622,1752681042966,-1269.79852195,0.00020606,4]
[372552623,1752681042976,-1269.79852195,0.00020606,4]
[372552624,1752681042988,-1269.79852195,0.00020606,4]
[372552625,1752681042997,-1269.79852195,0.00020606,4]
[372552626,1752681043011,-1269.79852195,0.00020606,4]
[372552627,1752681043031,-1269.79852195,0.00020606,4]
[372552628,1752681043052,-1269.79852195,0.00020606,4]
[372552629,1752681043063,-1269.79852195,0.00020606,4]
[372552630,1752681043073,-1269.79852195,0.00020606,4]
[372552632,1752681043083,-1269.79852195,0.00020606,4]
[372552634,1752681043093,-1269.79852195,0.00020606,4]
[372552635,1752681043103,-1269.79852195,0.00020606,4]
[372552636,1752681043112,-1269.79852195,0.00020606,4]
[372552637,1752681043121,-1269.79852195,0.00020606,4]
[372552638,1752681043131,-1269.79852195,0.00020606,4]
[372552639,1752681043140,-1269.79852195,0.00020606,4]
[372552641,1752681043150,-1269.79852195,0.00020606,4]
[372552642,1752681043159,-1269.79,0.00020606,4]
[372552643,1752681043168,-2962.86321788,0.00020606,4]
[372552644,1752681043179,-2962.86321788,0.00020606,4]
[372552646,1752681043188,-2962.86321788,0.00020606,4]
[372552648,1752681043198,-2962.86321788,0.00020606,4]
[372552650,1752681043209,-2962.86321788,0.00020606,4]
[372552652,1752681043218,-2962.86321788,0.00020606,4]
[372552654,1752681043229,-2962.86321788,0.00020606,4]
[372552656,1752681043239,-2962.86321788,0.00020606,4]
[372552658,1752681043248,-2962.86321788,0.00020606,4]
[372552660,1752681043257,-2962.86321788,0.00020606,4]
[372552661,1752681043267,-2962.86321788,0.00020606,4]
[372552663,1752681043276,-2962.86321788,0.00020606,4]
[372552665,1752681043286,-2962.86321788,0.00020606,4]
[372552667,1752681043295,-2962.86321788,0.00020606,4]
[372552669,1752681043305,-2962.86321788,0.00020606,4]
[372552671,1752681043315,-2962.86321788,0.00020606,4]
[372552673,1752681043325,-2962.86321788,0.00020606,4]
[372552675,1752681043335,-2962.86321788,0.00020606,4]
[372552677,1752681043345,-2962.86321788,0.00020606,4]
[372552679,1752681043355,-2962.86,0.00020606,4]
[372552681,1752681043364,-206.648635,0.00020647,2]
[372552683,1752681043374,-151.0,0.00020647,2]
[372552685,1752681043384,-151.0,0.00020647,2]
[372552687,1752681043394,-4031.856,0.00020656,2]
[372552689,1752681043404,-3995.61090714,0.00020656,2]
[372552691,1752681043413,-160.0,0.00020656,2]
[372552693,1752681043423,-401.19111454,0.00020656,2]
[372552695,1752681043432,-151.0,0.00020656,2]
[372552697,1752681043441,-207.4,0.00020656,2]
[372552699,1752681043451,-151.0,0.00020656,2]
[372552701,1752681043461,-5800.0,0.00020675,2]
[372552703,1752681043470,-5800.0,0.00020683,2]
[372552705,1752681043480,-101529.0,0.00020685,2]
[372552707,1752681043490,-151.0,0.00020685,2]
[372552709,1752681043500,-151.0,0.00020685,2]
[372552711,1752681043510,-151.0,0.00020685,2]
[372552713,1752681043519,-151.0,0.00020685,2]
[372552715,1752681043529,-151.0,0.00020685,2]
[372552717,1752681043539,-151.0,0.00020685,2]
[372552719,1752681043548,-151.0,0.00020685,2]
[372552721,1752681043558,-151.0,0.00020685,2]